fUST/lending_fUST_20250724
["ID","MTS","AMOUNT","RATE_DAILY","PERIOD"]
[374510056,1753331447331,-460.0,0.0002,2]
[374510057,1753331447341,-460.0,0.0002,2]
[374510058,1753331447351,-460.0,0.0002,2]
[374510059,1753331447361,-460.0,0.0002,2]
[374510060,1753331447370,-460.0,0.0002,2]
[374510061,1753331447380,-460.0,0.0002,2]
[374510062,1753331447389,-1347.15,0.0002,2]
[374510063,1753331447399,-460.0,0.0002,2]
[374510064,1753331447409,-460.0,0.0002,2]
[374510065,1753331447418,-532.27,0.0002,2]
[374510066,1753331447427,-460.0,0.0002,2]
[374510067,1753331447437,-916.07,0.0002,2]
[374510068,1753331447446,-460.0,0.0002,2]
[374510069,1753331447456,-460.0,0.0002,2]
[374510070,1753331447466,-486.37617099,0.0002,2]
[374510071,1753331447475,-547.98,0.0002,2]
[374510072,1753331447484,-1480.78,0.0002,2]
[374510073,1753331447494,-460.0,0.0002,2]
[374510074,1753331447504,-460.0,0.0002,2]
[374510075,1753331447514,-460.0,0.0002,2]
[374510076,1753331447523,-460.0,0.0002,2]
[374510077,1753331447533,-463.23,0.0002,2]
[374510078,1753331447543,-647.7,0.0002,2]
[374510079,1753331447552,-460.0,0.0002,2]
[374510080,1753331447561,-460.0,0.0002,2]
[374510081,1753331447571,-460.0,0.0002,2]
[374510082,1753331447580,-496.28,0.0002,2]
[374510083,1753331447589,-460.0,0.0002,2]
[374510084,1753331447599,-460.0,0.0002,2]
[374510085,1753331447608,-460.0,0.0002,2]
[374510086,1753331447618,-1571.26,0.0002,2]
[374510087,1753331447627,-460.0,0.0002,2]
[374510088,1753331447636,-460.0,0.0002,2]
[374510089,1753331447646,-2093.24,0.0002,2]
[374510090,1753331447655,-541.99,0.0002,2]
[374510091,1753331447664,-685.81,0.0002,2]
[374510092,1753331447674,-460.0,0.0002,2]
[374510093,1753331447683,-460.0,0.0002,2]
[374510094,1753331447693,-460.0,0.0002,2]
[374510095,1753331447702,-460.0,0.0002,2]
[374510096,1753331447712,-813.78,0.0002,2]
[374510097,1753331447721,-460.0,0.0002,2]
[374510098,1753331447811,-5915.49,0.0002,2]
[374510099,1753331447829,-460.0,0.0002,2]
[374510100,1753331447839,-460.0,0.0002,2]
[374510101,1753331447848,-460.0,0.0002,2]
[374510102,1753331447857,-1224.11,0.0002,2]
[374510103,1753331447866,-668.73,0.0002,2]
[374510104,1753331447875,-909.5,0.0002,2]
[374510105,1753331447884,-460.0,0.0002,2]
[374510106,1753331447894,-460.0,0.0002,2]
[374510107,1753331447904,-460.0,0.0002,2]
[374510108,1753331447913,-151.0,0.0002,2]
[374510109,1753331447923,-460.0,0.0002,2]
[374510110,1753331447932,-151.0,0.0002,2]
[374510111,1753331447946,-460.0,0.0002,2]
[374510112,1753331447956,-1363.71,0.0002,2]
[374510113,1753331447966,-460.0,0.0002,2]
[374510114,1753331447976,-151.0,0.0002,2]
[374510115,1753331447987,-460.0,0.0002,2]
[374510116,1753331447996,-741.54,0.0002,2]
[374510117,1753331448006,-579.4,0.0002,2]
[374510118,1753331448015,-460.0,0.0002,2]
[374510119,1753331448024,-1081.58,0.0002,2]
[374510120,1753331448034,-460.0,0.0002,2]
[374510121,1753331448043,-1334.3,0.0002,2]
[374510122,1753331448053,-218.9003452,0.00020021,2]
[374510123,1753331448063,-1000.0,0.00020021,2]
[374510124,1753331448073,-1009.12110116,0.00020021,2]
[374510125,1753331448083,-1000.0,0.00020021,2]
[374510126,1753331448092,-1000.0,0.00020021,2]
[374510127,1753331448101,-1000.0,0.00020021,2]
[374510128,1753331448111,-1000.0,0.00020021,2]
[374510129,1753331448120,-151.0,0.00020021,2]
[374510130,1753331448130,-151.0,0.00020021,2]
[374510131,1753331448140,-541.28418966,0.00020072,2]
[374510132,1753331448149,-151.0,0.00020091,2]
[374510133,1753331448158,-808.0030088,0.00020105,2]
[374510134,1753331448167,-219.0,0.00020132,2]
[374510135,1753331448176,-150.0,0.00020145,2]
[374510136,1753331448186,-690.647,0.00020156,2]
[374510137,1753331448195,-178.6390675,0.00020171,2]
[374510138,1753331448205,-219.36727,0.00020187,2]
[374510139,1753331448214,-541.28418966,0.00020245,2]
[374510140,1753331448223,-460.0,0.00020273,2]
[374510141,1753331448232,-359.457806,0.00020273,2]
[374510142,1753331448242,-250.513679,0.00020273,2]
[374510143,1753331448252,-250.513679,0.00020273,2]
[374510144,1753331448262,-460.0,0.00020273,2]
[374510145,1753331448271,-460.0,0.00020273,2]
[374510146,1753331448281,-460.0,0.00020273,2]
[374510147,1753331448290,-460.0,0.00020273,2]
[374510148,1753331448299,-460.0,0.00020273,2]
[374510149,1753331448308,-460.0,0.00020273,2]
[374510150,1753331448317,-460.0,0.00020273,2]
[374510151,1753331448327,-460.0,0.00020273,2]
[374510152,1753331448336,-460.0,0.00020273,2]
[374510153,1753331448345,-460.0,0.00020273,2]
[374510154,1753331448355,-460.0,0.00020273,2]
[374510155,1753331448364,-460.0,0.00020273,2]
[374510156,1753331448373,-460.0,0.00020273,2]
[374510157,1753331448383,-368.40089795,0.00020273,2]
[374510158,1753331448392,-151.0,0.00020273,2]
[374510159,1753331448401,-151.0,0.00020273,2]
[374510160,1753331448411,-460.0,0.00020273,2]
[374510161,1753331448420,-460.0,0.00020273,2]
[374510162,1753331448430,-460.0,0.00020273,2]
[374510163,1753331448439,-460.0,0.00020273,2]
[374510164,1753331448448,-460.0,0.00020273,2]
[374510165,1753331448458,-151.0,0.00020273,2]
[374510166,1753331448467,-460.0,0.00020273,2]
[374510168,1753331448477,-460.0,0.00020273,2]
[374510170,1753331448487,-151.0,0.00020273,2]
[374510172,1753331448497,-460.0,0.00020273,2]
[374510174,1753331448506,-460.0,0.00020273,2]
[374510176,1753331448516,-460.0,0.00020273,2]
[374510179,1753331448526,-460.0,0.00020273,2]
[374510181,1753331448535,-151.0,0.00020273,2]
[374510183,1753331448545,-151.0,0.00020273,2]
[374510184,1753331448554,-460.0,0.00020273,2]
[374510186,1753331448563,-151.812302,0.00020273,2]
[374510188,1753331448576,-151.0,0.00020273,2]
[374510190,1753331448585,-460.0,0.00020273,2]
[374510192,1753331448594,-151.0,0.00020273,2]
[374510194,1753331448603,-460.0,0.00020273,2]
[374510196,1753331448614,-460.0,0.00020273,2]
[374510198,1753331448623,-186.366261,0.00020273,2]
[374510200,1753331448633,-186.366261,0.00020273,2]
[374510202,1753331448642,-460.0,0.00020273,2]
[374510204,1753331448652,-151.0,0.00020273,2]
[374510206,1753331448662,-460.0,0.00020273,2]
[374510208,1753331448672,-1464.263723,0.00020273,2]
[374510209,1753331448681,-592.72,0.00020273,2]
[374510210,1753331448690,-1464.263723,0.00020273,2]
[374510211,1753331448700,-460.0,0.00020273,2]
[374510212,1753331448710,-151.0,0.00020273,2]
[374510213,1753331448719,-151.0,0.00020273,2]
[374510214,1753331448731,-501.35,0.00020273,2]
[374510215,1753331448740,-460.0,0.00020273,2]
[374510216,1753331448749,-460.0,0.00020273,2]
[374510217,1753331448760,-460.0,0.00020273,2]
[374510218,1753331448770,-460.0,0.00020273,2]
[374510219,1753331448780,-537.73,0.00020273,2]
[374510220,1753331448789,-151.0,0.00020273,2]
[374510221,1753331448799,-2952.57,0.00020273,2]
[374510222,1753331448808,-460.0,0.00020273,2]
[374510223,1753331448817,-546.2,0.00020273,2]
[374510224,1753331448829,-460.0,0.00020273,2]
[374510225,1753331448839,-151.0,0.00020273,2]
[374510226,1753331448849,-460.0,0.00020273,2]
[374510227,1753331448859,-799.52,0.00020273,2]
[374510228,1753331448869,-460.0,0.00020273,2]
[374510229,1753331448879,-460.0,0.00020273,2]
[374510230,1753331448889,-460.0,0.00020273,2]
[374510231,1753331448898,-494.42,0.00020273,2]
[374510232,1753331448907,-458.3786278,0.00020273,2]
[374510233,1753331448917,-151.0,0.00020273,2]
[374510234,1753331448927,-460.0,0.00020273,2]
[374510235,1753331448936,-460.0,0.00020273,2]
[374510236,1753331448946,-460.0,0.00020273,2]
[374510237,1753331448958,-460.0,0.00020273,2]
[374510238,1753331448968,-460.0,0.00020273,2]
[374510239,1753331448977,-460.0,0.00020273,2]
[374510240,1753331448986,-375.003382,0.00020273,2]
[374510241,1753331448996,-754.29,0.00020273,2]
[374510242,1753331449005,-460.0,0.00020273,2]
[374510243,1753331449015,-8334.09,0.00020273,2]
[374510244,1753331449025,-375.003382,0.00020273,2]
[374510245,1753331449035,-2700.94,0.00020273,2]
[374510246,1753331449045,-584.13,0.00020273,2]
[374510247,1753331449054,-460.0,0.00020273,2]
[374510248,1753331449063,-460.0,0.00020273,2]
[374510249,1753331449072,-460.0,0.00020273,2]
[374510250,1753331449082,-861.52,0.00020273,2]
[374510251,1753331449091,-460.0,0.00020273,2]
[374510252,1753331449101,-513.83,0.00020273,2]
[374510253,1753331449111,-460.0,0.00020273,2]
[374510254,1753331449120,-171.03322,0.00020273,2]
[374510255,1753331449129,-460.0,0.00020273,2]
[374510256,1753331449139,-907.31,0.00020273,2]
[374510257,1753331449149,-460.0,0.00020273,2]
[374510258,1753331449158,-1735.3,0.00020273,2]
[374510259,1753331449168,-171.03322,0.00020273,2]
[374510260,1753331449177,-503.0,0.00020273,2]
[374510261,1753331449187,-460.0,0.00020273,2]
[374510262,1753331449196,-460.0,0.00020273,2]
[374510263,1753331449206,-460.0,0.00020273,2]
[374510264,1753331449216,-460.0,0.00020273,2]
[374510265,1753331449225,-460.0,0.00020273,2]
[374510266,1753331449235,-460.0,0.00020273,2]
[374510267,1753331449244,-1347.15,0.00020273,2]
[374510268,1753331449253,-590.37182637,0.00020273,2]
[374510269,1753331449263,-460.0,0.00020273,2]
[374510270,1753331449273,-532.27,0.00020273,2]
[374510271,1753331449282,-916.07,0.00020273,2]
[374510272,1753331449291,-299.182357,0.00020273,2]
[374510273,1753331449301,-579.75836772,0.00020273,2]
[374510274,1753331449311,-170.237866,0.00020273,2]
[374510275,1753331449320,-299.182357,0.00020273,2]
[374510276,1753331449330,-547.98,0.00020273,2]
[374510277,1753331449340,-1480.78,0.00020273,2]
[374510278,1753331449350,-460.0,0.00020273,2]
[374510279,1753331449359,-460.0,0.00020273,2]
[374510280,1753331449369,-460.0,0.00020273,2]
[374510281,1753331449378,-170.237866,0.00020273,2]
[374510282,1753331449387,-460.0,0.00020273,2]
[374510283,1753331449396,-463.23,0.00020273,2]
[374510284,1753331449406,-647.7,0.00020273,2]
[374510285,1753331449415,-460.0,0.00020273,2]
[374510286,1753331449507,-460.0,0.00020273,2]
[374510287,1753331449517,-460.0,0.00020273,2]
[374510288,1753331449527,-496.28,0.00020273,2]
[374510289,1753331449536,-460.0,0.00020273,2]
[374510290,1753331449546,-460.0,0.00020273,2]
[374510291,1753331449555,-460.0,0.00020273,2]
[374510292,1753331449565,-1571.26,0.00020273,2]
[374510293,1753331449577,-460.0,0.00020273,2]
[374510294,1753331449588,-547.92105966,0.00020273,2]
[374510295,1753331449597,-2093.24,0.00020273,2]
[374510296,1753331449607,-541.99,0.00020273,2]
[374510297,1753331449616,-685.81,0.00020273,2]
[374510298,1753331449626,-460.0,0.00020273,2]
[374510299,1753331449635,-460.0,0.00020273,2]
[374510300,1753331449644,-460.0,0.00020273,2]
[374510301,1753331449653,-151.0,0.00020273,2]
[374510302,1753331449662,-460.0,0.00020273,2]
[374510303,1753331449672,-813.78,0.00020273,2]
[374510304,1753331449681,-151.0,0.00020273,2]
[374510305,1753331449691,-460.0,0.00020273,2]
[374510306,1753331449700,-5915.49,0.00020273,2]
[374510307,1753331449710,-460.0,0.00020273,2]
[374510308,1753331449720,-460.0,0.00020273,2]
[374510309,1753331449729,-1224.11,0.00020273,2]
[374510310,1753331449738,-668.73,0.00020273,2]
[374510311,1753331449748,-909.5,0.00020273,2]
[374510312,1753331449757,-460.0,0.00020273,2]
[374510313,1753331449767,-460.0,0.00020273,2]
[374510314,1753331449777,-460.0,0.00020273,2]
[374510315,1753331449786,-460.0,0.00020273,2]
[374510316,1753331449796,-509.72,0.00020273,2]
[374510317,1753331449805,-1363.71,0.00020273,2]
[374510318,1753331449815,-460.0,0.00020273,2]
[374510319,1753331449827,-152.837247,0.00020273,2]
[374510320,1753331449837,-741.54,0.00020273,2]
[374510321,1753331449846,-579.4,0.00020273,2]
[374510322,1753331449856,-460.0,0.00020273,2]
[374510323,1753331449866,-1081.58,0.00020273,2]
[374510324,1753331449875,-460.0,0.00020273,2]
[374510325,1753331449885,-1334.3,0.00020273,2]
[374510326,1753331449894,-219.0,0.00020299,2]
[374510327,1753331449905,-219.0,0.00020334,2]
[374510328,1753331449915,-4317.0,0.00020362,2]
[374510329,1753331449925,-151.0,0.000204,3]
[374510330,1753331449934,-466.65875,0.00020404,8]
[374510331,1753331449947,-541.28418966,0.00020417,3]
[374510332,1753331449961,-219.0,0.00020433,2]
[374510333,1753331449970,-808.0030088,0.00020447,2]
[374510334,1753331449979,-223.0315306,0.00020535,2]
[374510335,1753331449989,-453.86581609,0.00020547,2]
[374510336,1753331449999,-460.0,0.00020547,2]
[374510337,1753331450008,-496.97221885,0.00020547,2]
[374510338,1753331450018,-460.0,0.00020547,2]
[374510339,1753331450027,-460.0,0.00020547,2]
[374510340,1753331450037,-460.0,0.00020547,2]
[374510341,1753331450047,-217.67894385,0.00020547,2]
[374510342,1753331450057,-460.0,0.00020547,2]
[374510343,1753331450067,-419.81022479,0.00020547,2]
[374510344,1753331450078,-460.0,0.00020547,2]
[374510345,1753331450087,-468.69507705,0.00020547,2]
[374510346,1753331450097,-460.0,0.00020547,2]
[374510347,1753331450106,-460.0,0.00020547,2]
[374510348,1753331450115,-456.92,0.00020547,2]
[374510349,1753331450125,-460.0,0.00020547,2]
[374510350,1753331450135,-460.0,0.00020547,2]
[374510351,1753331450144,-460.0,0.00020547,2]
[374510352,1753331450153,-460.0,0.00020547,2]
[374510353,1753331450162,-460.0,0.00020547,2]
[374510354,1753331450172,-460.0,0.00020547,2]
[374510355,1753331450182,-460.0,0.00020547,2]
[374510356,1753331450191,-460.0,0.00020547,2]
[374510357,1753331450200,-460.0,0.00020547,2]
[374510358,1753331450209,-151.0,0.00020547,2]
[374510359,1753331450219,-460.0,0.00020547,2]
[374510360,1753331450228,-460.0,0.00020547,2]
[374510361,1753331450237,-151.0,0.00020547,2]
[374510362,1753331450248,-151.0,0.00020547,2]
[374510363,1753331450258,-501.35,0.00020547,2]
[374510364,1753331450267,-460.0,0.00020547,2]
[374510365,1753331450277,-460.0,0.00020547,2]
[374510366,1753331450287,-460.0,0.00020547,2]
[374510367,1753331450297,-537.73,0.00020547,2]
[374510368,1753331450306,-151.0,0.00020547,2]
[374510369,1753331450316,-2952.57,0.00020547,2]
[374510370,1753331450327,-460.0,0.00020547,2]
[374510371,1753331450337,-546.2,0.00020547,2]
[374510372,1753331450346,-159.98383421,0.00020547,2]
[374510373,1753331450355,-151.0,0.00020547,2]
[374510374,1753331450365,-799.52,0.00020547,2]
[374510375,1753331450374,-460.0,0.00020547,2]
[374510376,1753331450384,-460.0,0.00020547,2]
[374510377,1753331450394,-494.42,0.00020547,2]
[374510378,1753331450403,-151.0,0.00020547,2]
[374510379,1753331450413,-460.0,0.00020547,2]
[374510380,1753331450422,-460.0,0.00020547,2]
[374510381,1753331450431,-460.0,0.00020547,2]
[374510382,1753331450441,-375.003382,0.00020547,2]
[374510383,1753331450450,-754.29,0.00020547,2]
[374510384,1753331450460,-460.0,0.00020547,2]
[374510385,1753331450470,-8334.09,0.00020547,2]
[374510386,1753331450480,-375.003382,0.00020547,2]
[374510387,1753331450489,-2700.94,0.00020547,2]
[374510388,1753331450499,-584.13,0.00020547,2]
[374510389,1753331450509,-460.0,0.00020547,2]
[374510390,1753331450519,-861.52,0.00020547,2]
[374510391,1753331450528,-460.0,0.00020547,2]
[374510392,1753331450537,-513.83,0.00020547,2]
[374510393,1753331450547,-460.0,0.00020547,2]
[374510394,1753331450556,-171.03322,0.00020547,2]
[374510395,1753331450566,-460.0,0.00020547,2]
[374510396,1753331450575,-907.31,0.00020547,2]
[374510397,1753331450584,-460.0,0.00020547,2]
[374510398,1753331450593,-1735.3,0.00020547,2]
[374510399,1753331450601,-171.03322,0.00020547,2]
[374510400,1753331450611,-460.0,0.00020547,2]
[374510401,1753331450620,-460.0,0.00020547,2]
[374510402,1753331450630,-460.0,0.00020547,2]
[374510403,1753331450640,-460.0,0.00020547,2]
[374510404,1753331450650,-1347.15,0.00020547,2]
[374510405,1753331450659,-532.27,0.00020547,2]
[374510406,1753331450669,-916.07,0.00020547,2]
[374510407,1753331450678,-299.182357,0.00020547,2]
[374510408,1753331450687,-170.237866,0.00020547,2]
[374510409,1753331450697,-299.182357,0.00020547,2]
[374510410,1753331450706,-547.98,0.00020547,2]
[374510411,1753331450716,-1480.78,0.00020547,2]
[374510412,1753331450726,-460.0,0.00020547,2]
[374510413,1753331450735,-460.0,0.00020547,2]
[374510414,1753331450745,-460.0,0.00020547,2]
[374510415,1753331450754,-170.237866,0.00020547,2]
[374510416,1753331450764,-460.0,0.00020547,2]
[374510417,1753331450773,-463.23,0.00020547,2]
[374510418,1753331450782,-647.7,0.00020547,2]
[374510419,1753331450792,-460.0,0.00020547,2]
[374510420,1753331450802,-460.0,0.00020547,2]
[374510421,1753331450811,-496.28,0.00020547,2]
[374510422,1753331450820,-460.0,0.00020547,2]
[374510423,1753331450832,-460.0,0.00020547,2]
[374510424,1753331450841,-1571.26,0.00020547,2]
[374510425,1753331450851,-2093.24,0.00020547,2]
[374510426,1753331450861,-541.99,0.00020547,2]
[374510427,1753331450870,-685.81,0.00020547,2]
[374510428,1753331450880,-460.0,0.00020547,2]
[374510429,1753331450889,-460.0,0.00020547,2]
[374510430,1753331450898,-151.0,0.00020547,2]
[374510431,1753331450907,-460.0,0.00020547,2]
[374510432,1753331450916,-813.78,0.00020547,2]
[374510433,1753331450926,-151.0,0.00020547,2]
[374510434,1753331450936,-460.0,0.00020547,2]
[374510435,1753331450947,-5915.49,0.00020547,2]
[374510436,1753331450959,-460.0,0.00020547,2]
[374510437,1753331450968,-460.0,0.00020547,2]
[374510438,1753331451047,-1224.11,0.00020547,2]
[374510439,1753331451064,-668.73,0.00020547,2]
[374510440,1753331451074,-909.5,0.00020547,2]
[374510441,1753331451083,-460.0,0.00020547,2]
[374510442,1753331451092,-460.0,0.00020547,2]
[374510443,1753331451102,-151.0,0.00020547,2]
[374510444,1753331451111,-460.0,0.00020547,2]
[374510445,1753331451121,-151.0,0.00020547,2]
[374510446,1753331451130,-1363.71,0.00020547,2]
[374510447,1753331451140,-460.0,0.00020547,2]
[374510448,1753331451149,-741.54,0.00020547,2]
[374510449,1753331451158,-579.4,0.00020547,2]
[374510450,1753331451168,-460.0,0.00020547,2]
[374510451,1753331451177,-1081.58,0.00020547,2]
[374510452,1753331451186,-460.0,0.00020547,2]
[374510453,1753331451195,-1334.3,0.00020547,2]
[374510454,1753331451204,-151.0,0.00020548,2]
[374510455,1753331451214,-151.0,0.00020548,2]
[374510456,1753331451223,-151.0,0.00020548,2]
[374510457,1753331451232,-152.24303717,0.00020548,2]
[374510458,1753331451242,-151.0,0.00020548,2]
[374510459,1753331451251,-956.0,0.00020548,2]
[374510460,1753331451260,-151.0,0.00020548,2]
[374510461,1753331451270,-209.84295341,0.00020548,2]
[374510462,1753331451279,-500.0,0.00020548,2]
[374510463,1753331451288,-154.94722487,0.00020548,2]
[374510464,1753331451298,-156.11378499,0.00020548,2]
[374510465,1753331451307,-154.45769696,0.00020548,2]
[374510466,1753331451316,-151.0,0.00020548,2]
[374510467,1753331451326,-151.54943621,0.00020548,2]
[374510468,1753331451335,-151.0,0.00020548,2]
[374510469,1753331451344,-500.0,0.00020568,2]
[374510470,1753331451353,-1000.0,0.00020568,2]
[374510471,1753331451362,-151.0,0.00020582,2]
[374510472,1753331451371,-151.0,0.00020582,2]
[374510473,1753331451381,-541.28418966,0.0002059,3]
[374510474,1753331451390,-541.28418966,0.00020762,3]
[374510475,1753331451398,-420.0,0.00020789,2]
[374510476,1753331451408,-1616.0,0.00020791,2]
[374510477,1753331451418,-208.5694,0.00020821,2]
[374510478,1753331451427,-151.840791,0.00020821,2]
[374510479,1753331451436,-151.840791,0.00020821,2]
[374510480,1753331451445,-152.303766,0.00020821,2]
[374510481,1753331451455,-236.89438,0.00020821,2]
[374510482,1753331451464,-236.89438,0.00020821,2]
[374510483,1753331451474,-151.0,0.00020821,2]
[374510484,1753331451483,-151.0,0.00020821,2]
[374510485,1753331451492,-151.0,0.00020821,2]
[374510486,1753331451501,-359.457806,0.00020821,2]
[374510487,1753331451510,-250.513679,0.00020821,2]
[374510488,1753331451519,-250.513679,0.00020821,2]
[374510489,1753331451529,-151.0,0.00020821,2]
[374510490,1753331451538,-460.0,0.00020821,2]
[374510491,1753331451547,-151.0,0.00020821,2]
[374510492,1753331451556,-151.0,0.00020821,2]
[374510493,1753331451565,-460.0,0.00020821,2]
[374510494,1753331451574,-460.0,0.00020821,2]
[374510495,1753331451584,-460.0,0.00020821,2]
[374510496,1753331451594,-211.133947,0.00020821,2]
[374510497,1753331451603,-211.133947,0.00020821,2]
[374510498,1753331451612,-151.0,0.00020821,2]
[374510499,1753331451621,-460.0,0.00020821,2]
[374510500,1753331451630,-460.0,0.00020821,2]
[374510501,1753331451639,-151.0,0.00020821,2]
[374510502,1753331451649,-460.0,0.00020821,2]
[374510503,1753331451658,-201.443154,0.00020821,2]
[374510504,1753331451667,-460.0,0.00020821,2]
[374510505,1753331451677,-460.0,0.00020821,2]
[374510506,1753331451686,-151.0,0.00020821,2]
[374510507,1753331451696,-151.0,0.00020821,2]
[374510508,1753331451706,-460.0,0.00020821,2]
[374510509,1753331451715,-151.0,0.00020821,2]
[374510510,1753331451725,-151.0,0.00020821,2]
[374510511,1753331451734,-460.0,0.00020821,2]
[374510512,1753331451743,-186.366261,0.00020821,2]
[374510513,1753331451753,-186.366261,0.00020821,2]
[374510514,1753331451762,-460.0,0.00020821,2]
[374510515,1753331451771,-1464.263723,0.00020821,2]
[374510516,1753331451780,-1464.263723,0.00020821,2]
[374510517,1753331451789,-460.0,0.00020821,2]
[374510518,1753331451798,-501.35,0.00020821,2]
[374510519,1753331451808,-460.0,0.00020821,2]
[374510520,1753331451817,-349.72,0.00020821,2]
[374510521,1753331451827,-460.0,0.00020821,2]
[374510522,1753331451836,-228.43453808,0.00020821,2]
[374510523,1753331451845,-537.73,0.00020821,2]
[374510524,1753331451854,-2952.57,0.00020821,2]
[374510525,1753331451863,-460.0,0.00020821,2]
[374510526,1753331451873,-546.2,0.00020821,2]
[374510527,1753331451882,-799.52,0.00020821,2]
[374510528,1753331451891,-460.0,0.00020821,2]
[374510529,1753331451900,-494.42,0.00020821,2]
[374510530,1753331451910,-460.0,0.00020821,2]
[374510531,1753331451919,-460.0,0.00020821,2]
[374510532,1753331451928,-754.29,0.00020821,2]
[374510533,1753331451938,-403.84165865,0.00020821,2]
[374510534,1753331451947,-8334.09,0.00020821,2]
[374510535,1753331451960,-584.13,0.00020821,2]
[374510536,1753331451969,-2700.94,0.00020821,2]
[374510537,1753331451979,-460.0,0.00020821,2]
[374510538,1753331451989,-861.52,0.00020821,2]
[374510539,1753331451999,-460.0,0.00020821,2]
[374510540,1753331452008,-513.83,0.00020821,2]
[374510541,1753331452018,-460.0,0.00020821,2]
[374510542,1753331452028,-907.31,0.00020821,2]
[374510543,1753331452038,-460.0,0.00020821,2]
[374510544,1753331452047,-1735.3,0.00020821,2]
[374510545,1753331452057,-528.4428359,0.00020821,2]
[374510546,1753331452066,-460.0,0.00020821,2]
[374510547,1753331452075,-460.0,0.00020821,2]
[374510548,1753331452084,-1347.15,0.00020821,2]
[374510549,1753331452093,-532.27,0.00020821,2]
[374510550,1753331452103,-916.07,0.00020821,2]
[374510551,1753331452112,-547.98,0.00020821,2]
[374510552,1753331452121,-460.0,0.00020821,2]
[374510553,1753331452131,-460.0,0.00020821,2]
[374510554,1753331452140,-1480.78,0.00020821,2]
[374510555,1753331452149,-460.0,0.00020821,2]
[374510556,1753331452159,-463.23,0.00020821,2]
[374510557,1753331452168,-647.7,0.00020821,2]
[374510558,1753331452177,-460.0,0.00020821,2]
[374510559,1753331452186,-496.28,0.00020821,2]
[374510560,1753331452196,-460.0,0.00020821,2]
[374510561,1753331452205,-460.0,0.00020821,2]
[374510562,1753331452215,-1571.26,0.00020821,2]
[374510563,1753331452224,-2093.24,0.00020821,2]
[374510564,1753331452233,-541.99,0.00020821,2]
[374510565,1753331452242,-685.81,0.00020821,2]
[374510566,1753331452251,-460.0,0.00020821,2]
[374510567,1753331452261,-460.0,0.00020821,2]
[374510568,1753331452270,-181.85127161,0.00020821,2]
[374510569,1753331452279,-813.78,0.00020821,2]
[374510570,1753331452288,-460.0,0.00020821,2]
[374510571,1753331452298,-5915.49,0.00020821,2]
[374510572,1753331452308,-188.6,0.00020821,2]
[374510573,1753331452317,-460.0,0.00020821,2]
[374510574,1753331452326,-1224.11,0.00020821,2]
[374510575,1753331452336,-668.73,0.00020821,2]
[374510576,1753331452345,-909.5,0.00020821,2]